fUSD/lending_fUSD_20260614
["ID","MTS","AMOUNT","RATE_DAILY","PERIOD"]
[425010185,1781412658000,-500.0,0.00027671,8]
[425010206,1781412658000,-1025.96,0.00027671,8]
[425010257,1781412658000,-745.76,0.00027671,8]
[425010208,1781412658000,-500.0,0.00027671,8]
[425010242,1781412658000,-500.0,0.00027671,8]
[425010235,1781412658000,-629.84,0.00027671,8]
[425010241,1781412658000,-1545.51,0.00027671,8]
[425010238,1781412658000,-500.0,0.00027671,8]
[425010239,1781412658000,-500.0,0.00027671,8]
[425010237,1781412658000,-1237.19,0.00027671,8]
[425010243,1781412658000,-1383.07,0.00027671,8]
[425010255,1781412658000,-1870.29,0.00027671,8]
[425010244,1781412658000,-1111.21,0.00027671,8]
[425010254,1781412658000,-500.0,0.00027671,8]
[425010245,1781412658000,-500.0,0.00027671,8]
[425010246,1781412658000,-1822.51,0.00027671,8]
[425010251,1781412658000,-1731.92,0.00027671,8]
[425010248,1781412658000,-500.0,0.00027671,8]
[425010253,1781412658000,-2399.74,0.00027671,8]
[425010249,1781412658000,-500.0,0.00027671,8]
[425010252,1781412658000,-500.0,0.00027671,8]
[425010250,1781412658000,-500.0,0.00027671,8]
[425010256,1781412658000,-500.0,0.00027671,8]
[425010259,1781412658000,-500.0,0.00027671,8]
[425010260,1781412658000,-500.0,0.00027671,8]
[425010205,1781412658000,-574.78,0.00027671,8]
[425010258,1781412658000,-2026.37,0.00027671,8]
[425010240,1781412658000,-1672.8,0.00027671,8]
[425010234,1781412658000,-601.2,0.00027671,8]
[425010247,1781412658000,-1480.16,0.00027671,8]
[425010236,1781412658000,-919.65,0.00027671,8]
[425010211,1781412658000,-170.32181912,0.00027671,8]
[425010210,1781412658000,-500.0,0.00027671,8]
[425010233,1781412658000,-500.0,0.00027671,8]
[425010212,1781412658000,-989.38,0.00027671,8]
[425010216,1781412658000,-632.32,0.00027671,8]
[425010215,1781412658000,-500.0,0.00027671,8]
[425010217,1781412658000,-1052.46,0.00027671,8]
[425010214,1781412658000,-1057.83,0.00027671,8]
[425010213,1781412658000,-500.0,0.00027671,8]
[425010218,1781412658000,-500.0,0.00027671,8]
[425010220,1781412658000,-500.0,0.00027671,8]
[425010221,1781412658000,-765.46,0.00027671,8]
[425010219,1781412658000,-540.12,0.00027671,8]
[425010222,1781412658000,-500.0,0.00027671,8]
[425010232,1781412658000,-3262.01,0.00027671,8]
[425010228,1781412658000,-500.0,0.00027671,8]
[425010231,1781412658000,-500.0,0.00027671,8]
[425010225,1781412658000,-777.97,0.00027671,8]
[425010226,1781412658000,-714.13,0.00027671,8]
[425010224,1781412658000,-500.0,0.00027671,8]
[425010229,1781412658000,-723.45,0.00027671,8]
[425010227,1781412658000,-1285.45,0.00027671,8]
[425010223,1781412658000,-500.0,0.00027671,8]
[425010230,1781412658000,-1535.4,0.00027671,8]
[425010302,1781412659000,-1419.27,0.00027671,8]
[425010294,1781412659000,-1560.69,0.00027671,8]
[425010293,1781412659000,-500.0,0.00027671,8]
[425010290,1781412659000,-1563.27,0.00027671,8]
[425010292,1781412659000,-671.49,0.00027671,8]
[425010300,1781412659000,-500.0,0.00027671,8]
[425010299,1781412659000,-500.0,0.00027671,8]
[425010297,1781412659000,-500.0,0.00027671,8]
[425010298,1781412659000,-1714.43,0.00027671,8]
[425010295,1781412659000,-500.0,0.00027671,8]
[425010296,1781412659000,-581.84539377,0.00027671,8]
[425010304,1781412659000,-1322.89,0.00027671,8]
[425010315,1781412659000,-500.0,0.00027671,8]
[425010303,1781412659000,-500.0,0.00027671,8]
[425010306,1781412659000,-549.94,0.00027671,8]
[425010310,1781412659000,-2415.9,0.00027671,8]
[425010307,1781412659000,-500.0,0.00027671,8]
[425010309,1781412659000,-1031.13,0.00027671,8]
[425010313,1781412659000,-500.0,0.00027671,8]
[425010311,1781412659000,-500.0,0.00027671,8]
[425010308,1781412659000,-1275.33,0.00027671,8]
[425010312,1781412659000,-522.88690473,0.00027671,8]
[425010314,1781412659000,-831.68,0.00027671,8]
[425010316,1781412659000,-416.61322137,0.00027671,8]
[425010301,1781412659000,-753.7,0.00027671,8]
[425010305,1781412659000,-774.03,0.00027671,8]
[425010291,1781412659000,-500.0,0.00027671,8]
[425010263,1781412659000,-855.82,0.00027671,8]
[425010283,1781412659000,-813.1,0.00027671,8]
[425010317,1781412659000,-834.16,0.00027671,8]
[425010262,1781412659000,-960.18,0.00027671,8]
[425010264,1781412659000,-500.0,0.00027671,8]
[425010265,1781412659000,-500.0,0.00027671,8]
[425010261,1781412659000,-500.0,0.00027671,8]
[425010267,1781412659000,-500.0,0.00027671,8]
[425010266,1781412659000,-878.41,0.00027671,8]
[425010269,1781412659000,-500.0,0.00027671,8]
[425010268,1781412659000,-500.0,0.00027671,8]
[425010271,1781412659000,-500.0,0.00027671,8]
[425010270,1781412659000,-589.98,0.00027671,8]
[425010276,1781412659000,-500.0,0.00027671,8]
[425010275,1781412659000,-500.0,0.00027671,8]
[425010273,1781412659000,-500.0,0.00027671,8]
[425010274,1781412659000,-804.14,0.00027671,8]
[425010272,1781412659000,-1033.06,0.00027671,8]
[425010278,1781412659000,-1258.82,0.00027671,8]
[425010277,1781412659000,-500.0,0.00027671,8]
[425010279,1781412659000,-579.81,0.00027671,8]
[425010280,1781412659000,-500.0,0.00027671,8]
[425010281,1781412659000,-500.0,0.00027671,8]
[425010282,1781412659000,-533.74,0.00027671,8]
[425010288,1781412659000,-500.0,0.00027671,8]
[425010287,1781412659000,-2930.4,0.00027671,8]
[425010285,1781412659000,-500.0,0.00027671,8]
[425010284,1781412659000,-961.87,0.00027671,8]
[425010286,1781412659000,-500.0,0.00027671,8]
[425010289,1781412659000,-500.0,0.00027671,8]
[425010323,1781412659000,-502.82226082,0.00027671,8]
[425010338,1781412659000,-500.0,0.00027671,8]
[425010325,1781412659000,-500.0,0.00027671,8]
[425010354,1781412659000,-1159.37,0.00027671,8]
[425010357,1781412659000,-500.0,0.00027671,8]
[425010356,1781412659000,-177.94882828,0.00027671,8]
[425010355,1781412659000,-824.8,0.00027671,8]
[425010358,1781412659000,-500.0,0.00027671,8]
[425010352,1781412659000,-500.0,0.00027671,8]
[425010359,1781412659000,-500.0,0.00027671,8]
[425010361,1781412659000,-500.0,0.00027671,8]
[425010362,1781412659000,-500.0,0.00027671,8]
[425010363,1781412659000,-3181.72,0.00027671,8]
[425010373,1781412659000,-626.28,0.00027671,8]
[425010374,1781412659000,-500.0,0.00027671,8]
[425010351,1781412659000,-451.1243638,0.00027671,8]
[425010364,1781412659000,-3445.43,0.00027671,8]
[425010365,1781412659000,-500.0,0.00027671,8]
[425010367,1781412659000,-500.0,0.00027671,8]
[425010371,1781412659000,-500.0,0.00027671,8]
[425010366,1781412659000,-500.0,0.00027671,8]
[425010369,1781412659000,-995.14,0.00027671,8]
[425010368,1781412659000,-500.0,0.00027671,8]
[425010370,1781412659000,-800.3,0.00027671,8]
[425010375,1781412659000,-500.0,0.00027671,8]
[425010376,1781412659000,-2163.19,0.00027671,8]
[425010377,1781412659000,-500.0,0.00027671,8]
[425010378,1781412659000,-773.17,0.00027671,8]
[425010320,1781412659000,-520.85,0.00027671,8]
[425010372,1781412659000,-500.0,0.00027671,8]
[425010353,1781412659000,-500.0,0.00027671,8]
[425010360,1781412659000,-500.0,0.00027671,8]
[425010345,1781412659000,-500.0,0.00027671,8]
[425010318,1781412659000,-1007.33,0.00027671,8]
[425010324,1781412659000,-659.7,0.00027671,8]
[425010319,1781412659000,-1509.36,0.00027671,8]
[425010321,1781412659000,-658.32,0.00027671,8]
[425010346,1781412659000,-500.0,0.00027671,8]
[425010328,1781412659000,-500.0,0.00027671,8]
[425010326,1781412659000,-2035.16,0.00027671,8]
[425010329,1781412659000,-500.0,0.00027671,8]
[425010330,1781412659000,-649.0,0.00027671,8]
[425010327,1781412659000,-500.0,0.00027671,8]
[425010335,1781412659000,-777.82,0.00027671,8]
[425010334,1781412659000,-1428.44,0.00027671,8]
[425010332,1781412659000,-2679.21,0.00027671,8]
[425010331,1781412659000,-500.0,0.00027671,8]
[425010322,1781412659000,-500.0,0.00027671,8]
[425010337,1781412659000,-1929.52,0.00027671,8]
[425010336,1781412659000,-500.0,0.00027671,8]
[425010347,1781412659000,-609.91920794,0.00027671,8]
[425010344,1781412659000,-788.07,0.00027671,8]
[425010343,1781412659000,-500.0,0.00027671,8]
[425010340,1781412659000,-500.0,0.00027671,8]
[425010342,1781412659000,-500.0,0.00027671,8]
[425010348,1781412659000,-500.0,0.00027671,8]
[425010350,1781412659000,-581.98,0.00027671,8]
[425010349,1781412659000,-500.0,0.00027671,8]
[425010339,1781412659000,-680.58,0.00027671,8]
[425010333,1781412659000,-723.52,0.00027671,8]
[425010341,1781412659000,-500.0,0.00027671,8]
[425010396,1781412660000,-500.0,0.00027671,8]
[425010388,1781412660000,-2231.49058986,0.00027671,8]
[425010394,1781412660000,-481.12888633,0.00027671,8]
[425010395,1781412660000,-265.75625087,0.00027671,8]
[425010392,1781412660000,-500.0,0.00027671,8]
[425010403,1781412660000,-575.74,0.00027671,8]
[425010393,1781412660000,-669.87,0.00027671,8]
[425010389,1781412660000,-1061.11,0.00027671,8]
[425010391,1781412660000,-500.0,0.00027671,8]
[425010383,1781412660000,-892.17154853,0.00027671,8]
[425010387,1781412660000,-296.16493569,0.00027671,8]
[425010386,1781412660000,-82.69447445,0.00027671,8]
[425010385,1781412660000,-611.27,0.00027671,8]
[425010384,1781412660000,-436.90845147,0.00027671,8]
[425010382,1781412660000,-580.32310913,0.00027671,8]
[425010381,1781412660000,-500.0,0.00027671,8]
[425010380,1781412660000,-599.34,0.00027671,8]
[425010379,1781412660000,-500.0,0.00027671,8]
[425010401,1781412660000,-500.0,0.00027671,8]
[425010390,1781412660000,-500.0,0.00027671,8]
[425010400,1781412660000,-996.43,0.00027671,8]
[425010399,1781412660000,-500.0,0.00027671,8]
[425010398,1781412660000,-500.0,0.00027671,8]
[425010397,1781412660000,-1774.5,0.00027671,8]
[425010421,1781412660000,-278.78955388,0.00027671,8]
[425010422,1781412660000,-703.79086909,0.00027671,8]
[425010418,1781412660000,-500.0,0.00027671,8]
[425010417,1781412660000,-276.28115436,0.00027671,8]
[425010420,1781412660000,-485.2233011,0.00027671,8]
[425010419,1781412660000,-94.37520794,0.00027671,8]
[425010415,1781412660000,-500.0,0.00027671,8]
[425010414,1781412660000,-500.0,0.00027671,8]
[425010413,1781412660000,-797.81,0.00027671,8]
[425010416,1781412660000,-223.71884564,0.00027671,8]
[425010411,1781412660000,-1460.01,0.00027671,8]
[425010408,1781412660000,-500.0,0.00027671,8]
[425010410,1781412660000,-556.52944143,0.00027671,8]
[425010409,1781412660000,-500.0,0.00027671,8]
[425010407,1781412660000,-1566.12,0.00027671,8]
[425010406,1781412660000,-500.0,0.00027671,8]
[425010404,1781412660000,-562.99,0.00027671,8]
[425010405,1781412660000,-1237.94,0.00027671,8]
[425010412,1781412660000,-752.7,0.00027671,8]
[425010402,1781412660000,-500.0,0.00027671,8]
[425010469,1781412661000,-500.0,0.00027671,8]
[425010468,1781412661000,-840.44,0.00027671,8]
[425010459,1781412661000,-500.0,0.00027671,8]
[425010454,1781412661000,-500.0,0.00027671,8]
[425010457,1781412661000,-645.33,0.00027671,8]
[425010455,1781412661000,-2119.45,0.00027671,8]
[425010452,1781412661000,-500.0,0.00027671,8]
[425010456,1781412661000,-500.0,0.00027671,8]
[425010467,1781412661000,-500.0,0.00027671,8]
[425010451,1781412661000,-500.0,0.00027671,8]
[425010463,1781412661000,-500.0,0.00027671,8]
[425010481,1781412661000,-500.0,0.00027671,8]
[425010466,1781412661000,-500.0,0.00027671,8]
[425010462,1781412661000,-2372.27,0.00027671,8]
[425010461,1781412661000,-545.16,0.00027671,8]
[425010460,1781412661000,-500.0,0.00027671,8]
[425010465,1781412661000,-3430.6,0.00027671,8]
[425010464,1781412661000,-596.92,0.00027671,8]
[425010470,1781412661000,-508.09,0.00027671,8]
[425010471,1781412661000,-500.0,0.00027671,8]
[425010453,1781412661000,-500.0,0.00027671,8]
[425010474,1781412661000,-1470.97,0.00027671,8]
[425010479,1781412661000,-710.8,0.00027671,8]
[425010473,1781412661000,-500.0,0.00027671,8]
[425010458,1781412661000,-922.35,0.00027671,8]
[425010449,1781412661000,-193.04369525,0.00027671,8]
[425010437,1781412661000,-500.0,0.00027671,8]
[425010450,1781412661000,-599.37553664,0.00027671,8]
[425010478,1781412661000,-500.0,0.00027671,8]
[425010423,1781412661000,-1307.5912562,0.00026849,5]
[425010425,1781412661000,-628.00957703,0.00027671,8]
[425010424,1781412661000,-406.0,0.00027397,2]
[425010426,1781412661000,-500.0,0.00027671,8]
[425010427,1781412661000,-500.0,0.00027671,8]
[425010428,1781412661000,-1134.59814627,0.00027671,8]
[425010429,1781412661000,-3644.0,0.00026617,2]
[425010431,1781412661000,-524.19,0.00027671,8]
[425010433,1781412661000,-1349.10506004,0.00027671,8]
[425010430,1781412661000,-222.13185373,0.00027671,8]
[425010432,1781412661000,-29.51493996,0.00027671,8]
[425010435,1781412661000,-1411.59,0.00027671,8]
[425010443,1781412661000,-1312.02,0.00027671,8]
[425010445,1781412661000,-592.79,0.00027671,8]
[425010444,1781412661000,-502.16,0.00027671,8]
[425010436,1781412661000,-1252.66,0.00027671,8]
[425010434,1781412661000,-620.19,0.00027671,8]
[425010439,1781412661000,-500.0,0.00027671,8]
[425010442,1781412661000,-816.74,0.00027671,8]
[425010440,1781412661000,-471.58834506,0.00027671,8]
[425010438,1781412661000,-535.34,0.00027671,8]
[425010441,1781412661000,-500.0,0.00027671,8]
[425010446,1781412661000,-500.0,0.00027671,8]
[425010448,1781412661000,-500.0,0.00027671,8]
[425010447,1781412661000,-1881.99,0.00027671,8]
[425010472,1781412661000,-500.0,0.00027671,8]
[425010502,1781412661000,-500.0,0.00027671,8]
[425010480,1781412661000,-620.34709332,0.00027671,8]
[425010511,1781412661000,-500.0,0.00027671,8]
[425010519,1781412661000,-768.14,0.00027671,8]
[425010509,1781412661000,-500.0,0.00027671,8]
[425010510,1781412661000,-500.0,0.00027671,8]
[425010512,1781412661000,-869.29,0.00027671,8]
[425010514,1781412661000,-504.92,0.00027671,8]
[425010513,1781412661000,-500.0,0.00027671,8]
[425010516,1781412661000,-500.0,0.00027671,8]
[425010517,1781412661000,-500.0,0.00027671,8]
[425010515,1781412661000,-500.0,0.00027671,8]
[425010521,1781412661000,-500.0,0.00027671,8]
[425010522,1781412661000,-851.46,0.00027671,8]
[425010520,1781412661000,-500.0,0.00027671,8]
[425010523,1781412661000,-1295.99,0.00027671,8]
[425010524,1781412661000,-824.89,0.00027671,8]
[425010532,1781412661000,-1526.17,0.00027671,8]
[425010526,1781412661000,-500.0,0.00027671,8]
[425010525,1781412661000,-500.0,0.00027671,8]
[425010529,1781412661000,-5454.3,0.00027671,8]
[425010528,1781412661000,-2302.95,0.00027671,8]
[425010527,1781412661000,-500.0,0.00027671,8]
[425010530,1781412661000,-500.0,0.00027671,8]
[425010534,1781412661000,-1236.56,0.00027671,8]
[425010533,1781412661000,-648.05,0.00027671,8]
[425010476,1781412661000,-500.0,0.00027671,8]
[425010508,1781412661000,-410.64782115,0.00027671,8]
[425010507,1781412661000,-500.0,0.00027671,8]
[425010531,1781412661000,-500.0,0.00027671,8]
[425010506,1781412661000,-541.64,0.00027671,8]
[425010518,1781412661000,-697.1,0.00027671,8]
[425010475,1781412661000,-500.0,0.00027671,8]
[425010483,1781412661000,-500.0,0.00027671,8]
[425010485,1781412661000,-1067.55,0.00027671,8]
[425010482,1781412661000,-500.0,0.00027671,8]
[425010493,1781412661000,-500.0,0.00027671,8]
[425010491,1781412661000,-1188.61,0.00027671,8]
[425010490,1781412661000,-500.0,0.00027671,8]
[425010489,1781412661000,-500.0,0.00027671,8]
[425010487,1781412661000,-566.63,0.00027671,8]
[425010484,1781412661000,-500.0,0.00027671,8]
[425010492,1781412661000,-500.0,0.00027671,8]
[425010486,1781412661000,-500.0,0.00027671,8]
[425010477,1781412661000,-500.0,0.00027671,8]
[425010505,1781412661000,-500.0,0.00027671,8]
[425010488,1781412661000,-1023.92,0.00027671,8]
[425010499,1781412661000,-528.07,0.00027671,8]
[425010498,1781412661000,-1423.51,0.00027671,8]
[425010503,1781412661000,-1304.3,0.00027671,8]
[425010495,1781412661000,-500.0,0.00027671,8]
[425010501,1781412661000,-500.0,0.00027671,8]
[425010504,1781412661000,-1591.01,0.00027671,8]
[425010496,1781412661000,-500.0,0.00027671,8]
[425010497,1781412661000,-568.13,0.00027671,8]
[425010494,1781412661000,-724.35,0.00027671,8]
[425010500,1781412661000,-500.0,0.00027671,8]
[425010573,1781412662000,-500.0,0.00027671,8]
[425010580,1781412662000,-500.0,0.00027671,8]
[425010570,1781412662000,-1387.47,0.00027671,8]
[425010574,1781412662000,-6854.6,0.00027671,8]
[425010577,1781412662000,-500.0,0.00027671,8]
[425010564,1781412662000,-4650.25,0.00027671,8]
[425010572,1781412662000,-9318.37,0.00027671,8]
[425010569,1781412662000,-500.0,0.00027671,8]
[425010562,1781412662000,-500.0,0.00027671,8]
[425010575,1781412662000,-2657.03,0.00027671,8]
[425010563,1781412662000,-500.0,0.00027671,8]
[425010571,1781412662000,-500.0,0.00027671,8]
[425010576,1781412662000,-500.0,0.00027671,8]
[425010587,1781412662000,-500.0,0.00027671,8]
[425010579,1781412662000,-500.0,0.00027671,8]
[425010582,1781412662000,-626.27,0.00027671,8]
[425010591,1781412662000,-500.0,0.00027671,8]
[425010592,1781412662000,-500.0,0.00027671,8]
[425010586,1781412662000,-509.28,0.00027671,8]
[425010583,1781412662000,-620.22,0.00027671,8]
[425010588,1781412662000,-500.0,0.00027671,8]
[425010585,1781412662000,-1056.98,0.00027671,8]
[425010584,1781412662000,-633.46,0.00027671,8]
[425010581,1781412662000,-500.0,0.00027671,8]
[425010589,1781412662000,-500.0,0.00027671,8]
[425010590,1781412662000,-500.0,0.00027671,8]
[425010578,1781412662000,-882.04,0.00027671,8]
[425010566,1781412662000,-500.0,0.00027671,8]
[425010544,1781412662000,-2119.65,0.00027671,8]
[425010560,1781412662000,-1599.02,0.00027671,8]
[425010593,1781412662000,-1091.01,0.00027671,8]
[425010543,1781412662000,-548.01805795,0.00027671,8]
[425010535,1781412662000,-663.4,0.00027671,8]
[425010539,1781412662000,-500.0,0.00027671,8]
[425010538,1781412662000,-500.0,0.00027671,8]
[425010536,1781412662000,-867.36,0.00027671,8]
[425010540,1781412662000,-500.0,0.00027671,8]
[425010537,1781412662000,-500.0,0.00027671,8]
[425010547,1781412662000,-2205.29,0.00027671,8]
[425010545,1781412662000,-500.0,0.00027671,8]
[425010550,1781412662000,-500.0,0.00027671,8]
[425010551,1781412662000,-1631.77,0.00027671,8]
[425010561,1781412662000,-1902.0,0.00027671,8]
[425010548,1781412662000,-500.0,0.00027671,8]
[425010546,1781412662000,-317.96082342,0.00027671,8]
[425010549,1781412662000,-660.0,0.00027671,8]
[425010556,1781412662000,-500.0,0.00027671,8]
[425010554,1781412662000,-500.0,0.00027671,8]
[425010555,1781412662000,-500.0,0.00027671,8]
[425010553,1781412662000,-500.0,0.00027671,8]
[425010558,1781412662000,-500.0,0.00027671,8]
[425010557,1781412662000,-1736.16,0.00027671,8]
[425010568,1781412662000,-500.0,0.00027671,8]
[425010565,1781412662000,-500.0,0.00027671,8]
[425010567,1781412662000,-1662.26,0.00027671,8]
[425010559,1781412662000,-845.76,0.00027671,8]
[425010552,1781412662000,-500.0,0.00027671,8]
[425010596,1781412662000,-524.11,0.00027671,8]
[425010542,1781412662000,-500.0,0.00027671,8]
[425010595,1781412662000,-500.0,0.00027671,8]
[425010624,1781412662000,-500.0,0.00027671,8]
[425010633,1781412662000,-1754.68,0.00027671,8]
[425010630,1781412662000,-1310.78,0.00027671,8]
[425010634,1781412662000,-1116.71,0.00027671,8]
[425010635,1781412662000,-544.77,0.00027671,8]
[425010632,1781412662000,-815.14,0.00027671,8]
[425010638,1781412662000,-569.25,0.00027671,8]
[425010631,1781412662000,-655.79,0.00027671,8]
[425010636,1781412662000,-500.0,0.00027671,8]
[425010637,1781412662000,-500.0,0.00027671,8]
[425010639,1781412662000,-824.3,0.00027671,8]
[425010640,1781412662000,-500.0,0.00027671,8]
[425010642,1781412662000,-518.86,0.00027671,8]
[425010641,1781412662000,-527.3,0.00027671,8]
[425010643,1781412662000,-621.52,0.00027671,8]
[425010653,1781412662000,-850.13,0.00027671,8]
[425010652,1781412662000,-648.1,0.00027671,8]
[425010644,1781412662000,-500.0,0.00027671,8]
[425010647,1781412662000,-924.83,0.00027671,8]
[425010646,1781412662000,-500.0,0.00027671,8]
[425010648,1781412662000,-500.0,0.00027671,8]
[425010650,1781412662000,-674.46,0.00027671,8]
[425010645,1781412662000,-730.77,0.00027671,8]
[425010649,1781412662000,-500.0,0.00027671,8]
[425010654,1781412662000,-500.0,0.00027671,8]
[425010651,1781412662000,-1133.72,0.00027671,8]
[425010594,1781412662000,-500.0,0.00027671,8]
[425010627,1781412662000,-1287.79,0.00027671,8]
[425010620,1781412662000,-500.0,0.00027671,8]
[425010541,1781412662000,-500.0,0.00027671,8]
[425010625,1781412662000,-500.0,0.00027671,8]
[425010598,1781412662000,-595.66,0.00027671,8]
[425010597,1781412662000,-1201.05,0.00027671,8]
[425010599,1781412662000,-811.39,0.00027671,8]
[425010601,1781412662000,-566.83,0.00027671,8]
[425010603,1781412662000,-500.0,0.00027671,8]
[425010600,1781412662000,-1058.56,0.00027671,8]
[425010602,1781412662000,-500.0,0.00027671,8]
[425010605,1781412662000,-500.0,0.00027671,8]
[425010622,1781412662000,-500.0,0.00027671,8]
[425010606,1781412662000,-500.0,0.00027671,8]
[425010608,1781412662000,-500.0,0.00027671,8]
[425010610,1781412662000,-787.41,0.00027671,8]
[425010609,1781412662000,-500.0,0.00027671,8]
[425010618,1781412662000,-1973.29,0.00027671,8]
[425010604,1781412662000,-1131.84,0.00027671,8]
[425010617,1781412662000,-1371.78,0.00027671,8]
[425010613,1781412662000,-556.33,0.00027671,8]
[425010629,1781412662000,-592.15,0.00027671,8]
[425010628,1781412662000,-2799.41,0.00027671,8]
[425010623,1781412662000,-992.53,0.00027671,8]
[425010619,1781412662000,-500.0,0.00027671,8]
[425010626,1781412662000,-3257.38,0.00027671,8]
[425010621,1781412662000,-500.0,0.00027671,8]
[425010615,1781412662000,-1561.3,0.00027671,8]
[425010614,1781412662000,-500.0,0.00027671,8]
[425010607,1781412662000,-2165.46,0.00027671,8]
[425010612,1781412662000,-509.58,0.00027671,8]
[425010611,1781412662000,-500.0,0.00027671,8]
[425010616,1781412662000,-643.87,0.00027671,8]
[425010689,1781412663000,-504.09,0.00027671,8]
[425010678,1781412663000,-929.75,0.00027671,8]
[425010681,1781412663000,-500.0,0.00027671,8]
[425010680,1781412663000,-500.0,0.00027671,8]
[425010682,1781412663000,-575.72,0.00027671,8]
[425010686,1781412663000,-1241.94,0.00027671,8]
[425010684,1781412663000,-500.0,0.00027671,8]
[425010685,1781412663000,-872.27,0.00027671,8]
[425010683,1781412663000,-500.0,0.00027671,8]
[425010692,1781412663000,-571.46,0.00027671,8]
[425010693,1781412663000,-984.25,0.00027671,8]
[425010698,1781412663000,-500.0,0.00027671,8]
[425010691,1781412663000,-500.0,0.00027671,8]
[425010696,1781412663000,-344.77565731,0.00027671,8]
[425010695,1781412663000,-500.0,0.00027671,8]
[425010690,1781412663000,-500.0,0.00027671,8]
[425010687,1781412663000,-570.1454499,0.00027671,8]
[425010699,1781412663000,-1003.72,0.00027671,8]
[425010697,1781412663000,-2160.35,0.00027671,8]
[425010700,1781412663000,-500.0,0.00027671,8]
[425010694,1781412663000,-500.0,0.00027671,8]
[425010688,1781412663000,-7344.99,0.00027671,8]
[425010674,1781412663000,-500.0,0.00027671,8]
[425010673,1781412663000,-500.0,0.00027671,8]
[425010656,1781412663000,-500.0,0.00027671,8]
[425010655,1781412663000,-1004.12,0.00027671,8]
[425010662,1781412663000,-500.0,0.00027671,8]
[425010657,1781412663000,-500.0,0.00027671,8]
[425010660,1781412663000,-330.12811392,0.00027671,8]
[425010663,1781412663000,-774.42,0.00027671,8]
[425010659,1781412663000,-500.0,0.00027671,8]
[425010661,1781412663000,-301.9494589,0.00027671,8]
[425010664,1781412663000,-1061.75,0.00027671,8]
[425010658,1781412663000,-500.0,0.00027671,8]
[425010679,1781412663000,-500.0,0.00027671,8]
[425010665,1781412663000,-1139.19,0.00027671,8]
[425010676,1781412663000,-500.0,0.00027671,8]
[425010671,1781412663000,-4916.71,0.00027671,8]
[425010677,1781412663000,-1815.68,0.00027671,8]
[425010672,1781412663000,-500.0,0.00027671,8]
[425010670,1781412663000,-500.0,0.00027671,8]
[425010702,1781412663000,-500.0,0.00027671,8]
[425010669,1781412663000,-516.79,0.00027671,8]
[425010668,1781412663000,-525.56334811,0.00027671,8]
[425010675,1781412663000,-1467.58,0.00027671,8]
[425010667,1781412663000,-8085.8,0.00027671,8]
[425010666,1781412663000,-578.37,0.00027671,8]
[425010712,1781412663000,-521.56127764,0.00027671,8]
[425010707,1781412663000,-528.83,0.00027671,8]
[425010703,1781412663000,-2361.19,0.00027671,8]
[425010735,1781412663000,-1091.59,0.00027671,8]